fUST/lending_fUST_20240716
["ID","MTS","AMOUNT","RATE_DAILY","PERIOD"]
[332370241,1721135448902,-2018.022612,0.00021917,2]
[332370242,1721135448911,-2018.022612,0.00021917,2]
[332370243,1721135448920,-2018.022612,0.00021917,2]
[332370244,1721135448930,-500.0,0.00021917,2]
[332370245,1721135448939,-2018.022612,0.00021917,2]
[332370246,1721135448949,-2018.022612,0.00021917,2]
[332370255,1721135449051,-500.0,0.00021917,2]
[332370257,1721135449060,-2018.022612,0.00021917,2]
[332370258,1721135449070,-2018.022612,0.00021917,2]
[332370260,1721135449079,-500.0,0.00021917,2]
[332370262,1721135449089,-2018.022612,0.00021917,2]
[332370263,1721135449098,-500.0,0.00021917,2]
[332370265,1721135449107,-2018.022612,0.00021917,2]
[332370266,1721135449117,-2018.022612,0.00021917,2]
[332370267,1721135449127,-500.0,0.00021917,2]
[332370268,1721135449137,-500.0,0.00021917,2]
[332370269,1721135449148,-500.0,0.00021917,2]
[332370270,1721135449157,-982.69,0.00021917,2]
[332370271,1721135449167,-500.0,0.00021917,2]
[332370272,1721135449177,-500.0,0.00021917,2]
[332370274,1721135449187,-500.0,0.00021917,2]
[332370276,1721135449196,-500.0,0.00021917,2]
[332370277,1721135449206,-500.0,0.00021917,2]
[332370279,1721135449215,-500.0,0.00021917,2]
[332370281,1721135449225,-151.0,0.00021917,2]
[332370282,1721135449235,-151.0,0.00021917,2]
[332370283,1721135449245,-151.0,0.00021917,2]
[332370284,1721135449254,-500.0,0.00021917,2]
[332370285,1721135449263,-500.0,0.00021917,2]
[332370286,1721135449273,-500.0,0.00021917,2]
[332370287,1721135449282,-500.0,0.00021917,2]
[332370288,1721135449292,-585.02,0.00021917,2]
[332370289,1721135449303,-641.3467422,0.00021917,2]
[332370290,1721135449313,-500.0,0.00021917,2]
[332370291,1721135449322,-500.0,0.00021917,2]
[332370292,1721135449331,-151.0,0.00021917,2]
[332370293,1721135449340,-500.0,0.00021917,2]
[332370294,1721135449350,-151.0,0.00021917,2]
[332370295,1721135449360,-151.0,0.00021917,2]
[332370296,1721135449370,-151.0,0.00021917,2]
[332370297,1721135449379,-151.0,0.00021917,2]
[332370298,1721135449389,-151.0,0.00021917,2]
[332370299,1721135449398,-151.0,0.00021917,2]
[332370300,1721135449408,-151.0,0.00021917,2]
[332370301,1721135449417,-151.0,0.00021917,2]
[332370302,1721135449427,-500.0,0.00021917,2]
[332370303,1721135449436,-151.0,0.00021917,2]
[332370304,1721135449447,-151.0,0.00021917,2]
[332370305,1721135449457,-500.0,0.00021917,2]
[332370306,1721135449466,-151.0,0.00021917,2]
[332370307,1721135449476,-151.0,0.00021917,2]
[332370308,1721135449485,-151.0,0.00021917,2]
[332370309,1721135449494,-151.0,0.00021917,2]
[332370310,1721135449505,-151.0,0.00021917,2]
[332370311,1721135449514,-419.896164,0.00021917,2]
[332370312,1721135449524,-419.896164,0.00021917,2]
[332370313,1721135449534,-419.896164,0.00021917,2]
[332370314,1721135449543,-151.0,0.00021917,2]
[332370315,1721135449554,-260.240344,0.00021917,2]
[332370316,1721135449564,-419.896164,0.00021917,2]
[332370317,1721135449574,-419.896164,0.00021917,2]
[332370318,1721135449583,-500.0,0.00021917,2]
[332370319,1721135449592,-419.896164,0.00021917,2]
[332370320,1721135449602,-419.896164,0.00021917,2]
[332370321,1721135449612,-419.896164,0.00021917,2]
[332370322,1721135449622,-506.36847549,0.00021917,2]
[332370323,1721135449631,-419.896164,0.00021917,2]
[332370324,1721135449644,-516.63095831,0.00021917,2]
[332370325,1721135449654,-419.896164,0.00021917,2]
[332370326,1721135449663,-419.896164,0.00021917,2]
[332370327,1721135449674,-1740.33,0.00021917,2]
[332370328,1721135449684,-419.896164,0.00021917,2]
[332370329,1721135449694,-419.896164,0.00021917,2]
[332370330,1721135449704,-419.896164,0.00021917,2]
[332370331,1721135449715,-419.896164,0.00021917,2]
[332370332,1721135449725,-419.896164,0.00021917,2]
[332370333,1721135449734,-508.85867487,0.00021917,2]
[332370334,1721135449744,-419.896164,0.00021917,2]
[332370335,1721135449753,-419.896164,0.00021917,2]
[332370336,1721135449762,-151.0,0.00021917,2]
[332370337,1721135449771,-256.691807,0.00021917,2]
[332370338,1721135449781,-500.0,0.00021917,2]
[332370339,1721135449790,-500.0,0.00021917,2]
[332370340,1721135449802,-500.0,0.00021917,2]
[332370341,1721135449811,-500.0,0.00021917,2]
[332370342,1721135449820,-500.0,0.00021917,2]
[332370343,1721135449829,-453.59655266,0.00021917,2]
[332370344,1721135449838,-500.0,0.00021917,2]
[332370345,1721135449847,-500.0,0.00021917,2]
[332370346,1721135449857,-500.0,0.00021917,2]
[332370347,1721135449867,-500.0,0.00021917,2]
[332370348,1721135449877,-8203.18,0.00021917,2]
[332370349,1721135449887,-500.0,0.00021917,2]
[332370350,1721135449897,-500.0,0.00021917,2]
[332370351,1721135449908,-500.0,0.00021917,2]
[332370352,1721135449917,-500.0,0.00021917,2]
[332370353,1721135449927,-500.0,0.00021917,2]
[332370354,1721135449936,-500.0,0.00021917,2]
[332370355,1721135449945,-500.0,0.00021917,2]
[332370356,1721135449955,-500.0,0.00021917,2]
[332370357,1721135449965,-509.44163607,0.00021917,2]
[332370358,1721135449975,-500.0,0.00021917,2]
[332370359,1721135449984,-792.58,0.00021917,2]
[332370360,1721135449994,-162.104936,0.00021917,2]
[332370361,1721135450005,-162.104936,0.00021917,2]
[332370362,1721135450016,-162.104936,0.00021917,2]
[332370363,1721135450027,-162.104936,0.00021917,2]
[332370364,1721135450036,-162.104936,0.00021917,2]
[332370365,1721135450050,-500.0,0.00021917,2]
[332370366,1721135450059,-162.104936,0.00021917,2]
[332370367,1721135450069,-162.104936,0.00021917,2]
[332370368,1721135450078,-508.31,0.00021917,2]
[332370369,1721135450087,-162.104936,0.00021917,2]
[332370370,1721135450097,-162.104936,0.00021917,2]
[332370371,1721135450107,-500.0,0.00021917,2]
[332370372,1721135450117,-500.0,0.00021917,2]
[332370373,1721135450126,-151.0,0.00021917,2]
[332370374,1721135450136,-151.807023,0.00021917,2]
[332370375,1721135450146,-162.104936,0.00021917,2]
[332370376,1721135450155,-162.104936,0.00021917,2]
[332370377,1721135450164,-162.104936,0.00021917,2]
[332370378,1721135450173,-162.104936,0.00021917,2]
[332370379,1721135450182,-162.104936,0.00021917,2]
[332370380,1721135450192,-162.104936,0.00021917,2]
[332370381,1721135450203,-162.104936,0.00021917,2]
[332370382,1721135450213,-162.104936,0.00021917,2]
[332370383,1721135450224,-162.104936,0.00021917,2]
[332370384,1721135450235,-500.0,0.00021917,2]
[332370385,1721135450245,-509.62095321,0.00021917,2]
[332370386,1721135450255,-500.0,0.00021917,2]
[332370387,1721135450266,-500.0,0.00021917,2]
[332370388,1721135450276,-507.26739249,0.00021917,2]
[332370389,1721135450286,-500.0,0.00021917,2]
[332370390,1721135450296,-500.0,0.00021917,2]
[332370391,1721135450306,-500.0,0.00021917,2]
[332370392,1721135450318,-500.0,0.00021917,2]
[332370393,1721135450328,-500.0,0.00021917,2]
[332370394,1721135450337,-500.0,0.00021917,2]
[332370395,1721135450347,-500.0,0.00021917,2]
[332370396,1721135450356,-508.46435199,0.00021917,2]
[332370397,1721135450365,-500.0,0.00021917,2]
[332370398,1721135450375,-579.34,0.00021917,2]
[332370399,1721135450387,-500.0,0.00021917,2]
[332370400,1721135450397,-500.0,0.00021917,2]
[332370401,1721135450408,-502.48185518,0.00021917,2]
[332370402,1721135450418,-500.0,0.00021917,2]
[332370403,1721135450427,-151.0,0.00021917,2]
[332370404,1721135450437,-500.0,0.00021917,2]
[332370405,1721135450447,-151.0,0.00021917,2]
[332370406,1721135450458,-151.0,0.00021917,2]
[332370407,1721135450469,-151.0,0.00021917,2]
[332370408,1721135450479,-151.0,0.00021917,2]
[332370409,1721135450490,-151.0,0.00021917,2]
[332370410,1721135450501,-151.0,0.00021917,2]
[332370411,1721135450512,-151.0,0.00021917,2]
[332370412,1721135450522,-500.0,0.00021917,2]
[332370413,1721135450532,-151.0,0.00021917,2]
[332370414,1721135450541,-500.0,0.00021917,2]
[332370415,1721135450551,-151.0,0.00021917,2]
[332370416,1721135450560,-151.0,0.00021917,2]
[332370417,1721135450569,-500.0,0.00021917,2]
[332370418,1721135450581,-151.0,0.00021917,2]
[332370419,1721135450590,-151.0,0.00021917,2]
[332370420,1721135450599,-158.546276,0.00021917,2]
[332370421,1721135450610,-151.0,0.00021917,2]
[332370422,1721135450621,-500.0,0.00021917,2]
[332370423,1721135450631,-154.204822,0.00021917,2]
[332370424,1721135450646,-500.0,0.00021917,2]
[332370425,1721135450656,-151.0,0.00021917,2]
[332370426,1721135450666,-151.0,0.00021917,2]
[332370427,1721135450676,-151.0,0.00021917,2]
[332370428,1721135450763,-151.0,0.00021917,2]
[332370429,1721135450772,-744.205742,0.00021917,2]
[332370430,1721135450781,-151.0,0.00021917,2]
[332370431,1721135450791,-744.205742,0.00021917,2]
[332370432,1721135450800,-151.0,0.00021917,2]
[332370433,1721135450809,-744.205742,0.00021917,2]
[332370434,1721135450819,-744.205742,0.00021917,2]
[332370435,1721135450828,-183.81575694,0.00021917,2]
[332370436,1721135450837,-744.205742,0.00021917,2]
[332370437,1721135450846,-500.0,0.00021917,2]
[332370438,1721135450855,-744.205742,0.00021917,2]
[332370439,1721135450865,-500.0,0.00021917,2]
[332370440,1721135450874,-744.205742,0.00021917,2]
[332370441,1721135450883,-500.0,0.00021917,2]
[332370442,1721135450892,-500.0,0.00021917,2]
[332370443,1721135450902,-744.205742,0.00021917,2]
[332370444,1721135450911,-151.0,0.00021917,2]
[332370445,1721135450920,-151.0,0.00021917,2]
[332370446,1721135450930,-500.0,0.00021917,2]
[332370447,1721135450939,-744.205742,0.00021917,2]
[332370448,1721135450948,-151.0,0.00021917,2]
[332370449,1721135450958,-500.0,0.00021917,2]
[332370450,1721135450967,-744.205742,0.00021917,2]
[332370451,1721135450976,-155.506164,0.00021917,2]
[332370452,1721135450985,-151.0,0.00021917,2]
[332370453,1721135450994,-583.38167085,0.00021917,2]
[332370454,1721135451004,-151.0,0.00021917,2]
[332370455,1721135451015,-744.205742,0.00021917,2]
[332370456,1721135451025,-500.0,0.00021917,2]
[332370457,1721135451036,-151.0,0.00021917,2]
[332370458,1721135451046,-151.0,0.00021917,2]
[332370459,1721135451055,-744.205742,0.00021917,2]
[332370460,1721135451065,-500.0,0.00021917,2]
[332370461,1721135451077,-500.0,0.00021917,2]
[332370462,1721135451087,-184.94942192,0.00021917,2]
[332370463,1721135451098,-500.0,0.00021917,2]
[332370464,1721135451107,-534.08140841,0.00021917,2]
[332370465,1721135498125,150.65349696,0.0002291,120]
[332370475,1721135867511,150.65349696,0.0002302,120]
[332370477,1721136263725,150.65349696,0.00023077,120]
[332370482,1721136382354,360.48792007,0.00016255,2]
[332370549,1721136555628,191.27347695,0.00019165,2]
[332370618,1721136633010,-254.0,0.00019999,2]
[332370620,1721136633023,-154.74130364,0.00020543,2]
[332370622,1721136633033,-6793.03490891,0.00020663,2]
[332370623,1721136633044,-5970.2,0.00020663,2]
[332370705,1721136638303,-4741.08726469,0.00020663,2]
[332370706,1721136638314,-176.703405,0.00020869,2]
[332370707,1721136638326,-248.1002,0.00021,2]
[332370708,1721136638336,-355.552419,0.00021096,2]
[332370709,1721136638345,-176.703405,0.00021231,2]
[332370710,1721136638357,-500.0,0.00021232,2]
[332370711,1721136638367,-500.0,0.00021369,2]
[332370712,1721136638377,-176.703405,0.00021594,2]
[332370713,1721136638388,-293.6030539,0.000218,2]
[332370714,1721136638397,-153.0,0.000218,2]
[332370715,1721136638407,-153.0,0.000218,2]
[332370716,1721136638416,-153.0,0.000218,2]
[332370717,1721136638426,-153.0,0.000218,2]
[332370718,1721136638435,-307.3187507,0.000218,2]
[332370719,1721136638444,-153.0,0.000218,2]
[332370720,1721136638453,-437.5495102,0.000218,2]
[332370721,1721136638463,-353.73917707,0.00021817,2]
[332370722,1721136638473,-153.0,0.000219,2]
[332370723,1721136638483,-81.26468332,0.000219,2]
[332371208,1721136643224,-2918.73531668,0.000219,2]
[332371210,1721136643235,-188.48,0.00021907,3]
[332371212,1721136643244,-565.47,0.00021907,3]
[332371214,1721136643254,-3000.0,0.0002191,2]
[332371216,1721136643264,-1407.0,0.0002191,2]
[332371218,1721136643275,-192.64953868,0.00021916,2]
[332371220,1721136643284,-500.0,0.00021916,2]
[332371222,1721136643295,-303.74022925,0.00021916,2]
[332371224,1721136643306,-500.0,0.00021916,2]
[332371226,1721136643317,-274.01384305,0.00021916,2]
[332371228,1721136643327,-473.14351943,0.00021917,5]
[332371230,1721136643336,-309.16109162,0.00021917,2]
[332371232,1721136643346,-500.0,0.00021917,2]
[332371234,1721136643356,-500.0,0.00021917,2]
[332371236,1721136643365,-500.0,0.00021917,2]
[332371238,1721136643374,-500.0,0.00021917,2]
[332371240,1721136643384,-583.44,0.00021917,2]
[332371242,1721136643393,-637.52326172,0.00021917,2]
[332371243,1721136643402,-500.0,0.00021917,2]
[332371244,1721136643411,-500.0,0.00021917,2]
[332371245,1721136643421,-500.0,0.00021917,2]
[332371246,1721136643430,-500.0,0.00021917,2]
[332371247,1721136643439,-633.06827934,0.00021917,2]
[332371248,1721136643449,-500.0,0.00021917,2]
[332371249,1721136643459,-500.0,0.00021917,2]
[332371250,1721136643468,-500.0,0.00021917,2]
[332371251,1721136643477,-500.0,0.00021917,2]
[332371252,1721136643487,-500.0,0.00021917,2]
[332371253,1721136643496,-500.0,0.00021917,2]
[332371254,1721136643506,-500.0,0.00021917,2]
[332371255,1721136643516,-500.0,0.00021917,2]
[332371256,1721136643525,-500.0,0.00021917,2]
[332371257,1721136643535,-500.0,0.00021917,2]
[332371258,1721136643544,-500.0,0.00021917,2]
[332371259,1721136643553,-500.0,0.00021917,2]
[332371260,1721136643562,-500.0,0.00021917,2]
[332371261,1721136643573,-500.0,0.00021917,2]
[332371262,1721136643582,-500.0,0.00021917,2]
[332371263,1721136643591,-306.24180039,0.00021917,2]
[332371264,1721136643601,-500.0,0.00021917,2]
[332371265,1721136643610,-500.0,0.00021917,2]
[332371266,1721136643620,-500.0,0.00021917,2]
[332371267,1721136643629,-500.0,0.00021917,2]
[332371269,1721136643639,-500.0,0.00021917,2]
[332371271,1721136643649,-500.0,0.00021917,2]
[332371273,1721136643658,-514.07918439,0.00021917,2]
[332371274,1721136643668,-500.0,0.00021917,2]
[332371275,1721136643678,-500.0,0.00021917,2]
[332371276,1721136643688,-528.4817859,0.00021917,2]
[332371277,1721136643697,-500.0,0.00021917,2]
[332371278,1721136643707,-500.0,0.00021917,2]
[332371279,1721136643716,-500.0,0.00021917,2]
[332371280,1721136643726,-500.0,0.00021917,2]
[332371281,1721136643735,-500.0,0.00021917,2]
[332371282,1721136643744,-500.0,0.00021917,2]
[332371283,1721136643754,-200.0,0.00021917,2]
[332371284,1721136643764,-500.0,0.00021917,2]
[332371285,1721136643773,-533.80998412,0.00021917,2]
[332371286,1721136643783,-500.0,0.00021917,2]
[332371288,1721136643792,-500.0,0.00021917,2]
[332371290,1721136643802,-1500.0,0.00021917,2]
[332371292,1721136643811,-500.0,0.00021917,2]
[332371294,1721136643822,-428.60088104,0.00021917,2]
[332371296,1721136643831,-1110.08,0.00021917,2]
[332371298,1721136643840,-154.80607985,0.00021917,2]
[332371300,1721136643850,-500.0,0.00021917,2]
[332371302,1721136643860,-500.0,0.00021917,2]
[332371304,1721136643870,-500.0,0.00021917,2]
[332371306,1721136643880,-500.0,0.00021917,2]
[332371308,1721136643890,-500.0,0.00021917,2]
[332371310,1721136643900,-458.31381239,0.00021917,2]
[332371313,1721136643915,-41.68618761,0.00021917,2]
[332371315,1721136643925,-484.1569262,0.00021917,2]
[332371317,1721136643934,-496.01225948,0.00021917,2]
[332371319,1721136643944,-500.0,0.00021917,2]
[332371321,1721136643953,-370.12434726,0.00021917,2]
[332371955,1721136807958,6322.79860785,0.00016255,2]
[332371956,1721136807983,4716.26958462,0.00016255,2]
[332371958,1721136938443,-510.0,0.0002526,120]
[332371962,1721137038661,732.55440307,0.00016255,2]
[332371966,1721137087169,562.35832955,0.00016255,2]
[332371976,1721137300694,374.90555303,0.00016255,2]
[332371981,1721137504701,312.4212942,0.00016255,2]
[332371985,1721137604122,-312.4212942,0.00019703,2]
[332371986,1721137604147,-4.32118931,0.00020449,2]
[332371990,1721137716724,1889.33469158,0.0002255,29]
[332371991,1721137717728,162.77149428,0.00016255,2]
[332372001,1721137745130,-150.0,0.000189,2]
[332372004,1721137811135,1000.0,0.00021,21]
[332372005,1721137814177,189.51973353,0.00019165,2]
[332372006,1721137829122,189.51973353,0.00019165,2]
[332372026,1721137832215,-250.0,0.00020302,2]
[332372027,1721137832225,-677.44336581,0.00020449,2]
[332372030,1721137832236,-428.71334484,0.00020449,2]
[332372031,1721137832247,-764.58301536,0.00020449,2]
[332372032,1721137832257,-225.94652212,0.00020449,2]
[332372033,1721137832269,-208.64912269,0.00020449,2]
[332372034,1721137832278,-10676.5795555,0.00020484,2]
[332372035,1721137832287,-176.703405,0.00020656,2]
[332372036,1721137832296,-248.1002,0.00021,2]
[332372037,1721137832305,-1000.0,0.00021,5]
[332372038,1721137832318,-364.79676,0.00021096,2]
[332372039,1721137832329,-2500.0,0.000219,2]
[332372040,1721137832338,-3000.0,0.000219,2]
[332372041,1721137832347,-10058.1940711,0.00021907,3]
[332372042,1721137832356,-376.96,0.00021907,3]
[332372043,1721137832365,-1920.49860558,0.0002191,2]
[332372097,1721137838409,-1079.50139442,0.0002191,2]
[332372098,1721137838419,-1407.0,0.00021912,2]
[332372100,1721137838433,-111.3215721,0.00021917,5]
[332372620,1721137843390,-125.25018762,0.00021917,5]
[332372621,1721137843400,-500.0,0.00021917,2]
[332372622,1721137843409,-500.0,0.00021917,2]
[332372623,1721137843420,-500.0,0.00021917,2]
[332372624,1721137843434,-266.72953293,0.00021917,2]
[332374590,1721138341172,189.51973353,0.00016255,2]
[332374591,1721138379921,227.9167003,0.000241,120]
[332374592,1721138473442,162.77149428,0.00016255,2]
[332374596,1721138671781,162.77149428,0.00016255,2]
[332374597,1721138700758,150.66852924,0.00022752,120]
[332374598,1721138701803,162.77149428,0.00016255,2]
[332374601,1721138851150,-271.26467839,0.00018899,7]
[332374603,1721138856924,522.60191767,0.00016255,7]
[332374606,1721138911794,162.77149428,0.00016255,2]
[332374607,1721138956169,-150.0,0.00019703,7]
[332374608,1721138972088,-522.60191767,0.00019165,7]
[332374609,1721138972110,-162.77149428,0.00019703,2]
[332374999,1721139038035,90.54569583,0.00019165,7]
[332375006,1721139038058,178.32213145,0.00019165,7]
[332375707,1721139044942,-189.15199033,0.00020543,2]
[332375708,1721139044954,-248.1002,0.00021,2]
[332375711,1721139044967,-1329.4773426,0.00021,2]
[332375851,1721139046586,-670.5226574,0.00021,2]
[332375853,1721139046599,-346.556922,0.00021096,2]
[332375856,1721139046614,-571.6704206,0.00021692,2]
[332378927,1721139151764,309.0,0.00021908,62]
[332378928,1721139151802,150.5,0.00021908,62]
[332378929,1721139151833,150.5,0.00021908,62]
[332378930,1721139152199,150.5,0.00021908,62]
[332378931,1721139152297,309.0,0.00021898,62]
[332378932,1721139152329,161.31,0.00021898,62]
[332378933,1721139152357,150.5,0.00021898,62]
[332378934,1721139152738,150.5,0.00021898,62]
[332378935,1721139152827,309.0,0.00021888,62]
[332378936,1721139152883,150.5,0.00021888,62]
[332378937,1721139153264,200.0,0.00021888,62]
[332378944,1721139271610,216.0,0.00021908,62]
[332378945,1721139272153,216.0,0.00021898,62]
[332378946,1721139272626,216.0,0.00021888,62]
[332378947,1721139301112,1581.5314073,0.0002255,29]
[332378949,1721139392693,152.0,0.00021908,62]
[332378950,1721139393111,152.0,0.00021898,62]
[332378951,1721139393626,152.0,0.00021888,62]
[332378952,1721139506728,189.51973353,0.00016255,2]
[332378953,1721139512162,150.5,0.00021908,62]
[332378954,1721139512646,150.5,0.00021898,62]
[332378955,1721139513150,150.5,0.00021888,62]
[332378957,1721139632051,150.5,0.00021908,62]
[332378958,1721139632467,150.5,0.00021898,62]
[332378959,1721139633076,150.5,0.00021888,62]
[332378960,1721139647352,162.77149428,0.00016255,2]
[332378963,1721139753215,162.0,0.00021907,62]
[332378981,1721139900359,285.92,0.00024,120]
[332378986,1721140147120,-344.24,0.00019056,3]
[332378987,1721140150354,-469.73106147,0.00019056,3]
[332379039,1721140232659,-778.40318934,0.00020291,2]
[332379040,1721140232668,-2831.3418913,0.00020391,2]
[332379041,1721140232678,-150.0,0.0002045,2]
[332379042,1721140232687,-426.0,0.00020792,2]
[332379043,1721140232698,-300.0,0.00020999,2]
[332379044,1721140232708,-248.1002,0.00021,2]
[332379045,1721140232718,-426.0,0.00021019,2]
[332379046,1721140232727,-329.229075,0.00021096,2]
[332379047,1721140232736,-300.0,0.00021245,2]
[332379048,1721140232746,-426.0,0.00021246,2]
[332379049,1721140232756,-3604.62894529,0.00021441,2]
[332379050,1721140232767,-426.0,0.00021473,2]
[332379051,1721140232777,-357.78742068,0.00021605,2]
[332379052,1721140232788,-426.0,0.00021699,2]
[332379053,1721140232799,-151.0,0.00021699,2]
[332379054,1721140232808,-151.0,0.0002182,2]
[332379055,1721140232818,-4936.55253474,0.0002184,5]
[332379056,1721140232828,-193.485996,0.0002184,2]
[332379057,1721140232841,-151.0,0.0002184,2]
[332379058,1721140232850,-243.248042,0.0002184,2]
[332379059,1721140232860,-151.0,0.0002184,2]
[332379060,1721140232869,-151.0,0.0002185,2]
[332379061,1721140232879,-151.0,0.0002185,2]
[332379062,1721140232889,-151.0,0.0002185,2]
[332379063,1721140232900,-151.0,0.0002185,2]
[332379064,1721140232909,-151.0,0.0002185,2]
[332379065,1721140232918,-180.285999,0.0002185,2]
[332379066,1721140232927,-214.830504,0.0002185,2]
[332379067,1721140232937,-214.830504,0.0002185,2]
[332379068,1721140232948,-214.830504,0.0002185,2]
[332379069,1721140232958,-214.830504,0.0002185,2]
[332379070,1721140232967,-151.0,0.0002185,2]
[332379071,1721140232977,-151.0,0.0002185,2]
[332379072,1721140232986,-151.0,0.0002185,2]
[332379073,1721140232995,-151.0,0.0002185,2]
[332379074,1721140233005,-151.0,0.0002185,2]
[332379075,1721140233015,-151.0,0.0002185,2]
[332379076,1721140233025,-357.477154,0.0002185,2]
[332379077,1721140233034,-357.477154,0.0002185,2]
[332379078,1721140233045,-151.0,0.0002185,2]
[332379079,1721140233054,-357.477154,0.0002185,2]
[332379080,1721140233064,-357.477154,0.0002185,2]
[332379081,1721140233074,-151.0,0.0002185,2]
[332379082,1721140233084,-151.0,0.0002185,2]
[332379083,1721140233098,-151.0,0.0002185,2]
[332379084,1721140233108,-293.586307,0.0002185,2]
[332379085,1721140233118,-314.706035,0.0002185,2]
[332379086,1721140233127,-314.706035,0.0002185,2]
[332379087,1721140233139,-314.706035,0.0002185,2]
[332379088,1721140233149,-314.706035,0.0002185,2]
[332379089,1721140233158,-151.0,0.0002185,2]
[332379090,1721140233168,-151.0,0.0002185,2]
[332379091,1721140233177,-153.913507,0.0002185,2]
[332379092,1721140233187,-151.0,0.0002185,2]
[332379093,1721140233196,-151.0,0.0002185,2]
[332379094,1721140233206,-151.0,0.0002185,2]
[332379095,1721140233215,-151.0,0.0002185,2]
[332379096,1721140233224,-156.402079,0.0002185,2]
[332379097,1721140233238,-151.0,0.0002185,2]
[332379098,1721140233339,-247.33597,0.0002185,2]
[332379099,1721140233354,-151.0,0.0002185,2]
[332379100,1721140233364,-151.0,0.0002185,2]
[332379101,1721140233374,-151.0,0.0002185,2]
[332379102,1721140233383,-151.0,0.0002185,2]
[332379103,1721140233393,-468.581762,0.0002185,2]
[332379104,1721140233403,-468.581762,0.0002185,2]
[332379105,1721140233413,-468.581762,0.0002185,2]
[332379106,1721140233423,-468.581762,0.0002185,2]
[332379107,1721140233433,-151.0,0.0002185,2]
[332379108,1721140233443,-151.0,0.0002185,2]
[332379109,1721140233453,-154.34068,0.0002185,2]
[332379110,1721140233464,-151.0,0.0002185,2]
[332379111,1721140233474,-151.0,0.0002185,2]
[332379112,1721140233484,-151.0,0.0002185,2]
[332379113,1721140233495,-151.0,0.0002185,2]
[332379114,1721140233505,-151.0,0.0002185,2]
[332379115,1721140233515,-151.0,0.0002185,2]
[332379116,1721140233524,-151.0,0.0002185,2]
[332379117,1721140233533,-151.0,0.0002185,2]
[332379118,1721140233543,-151.0,0.0002186,2]
[332379119,1721140233552,-151.0,0.0002186,2]
[332379120,1721140233563,-151.0,0.0002186,2]
[332379121,1721140233572,-151.0,0.0002186,2]
[332379122,1721140233581,-151.0,0.0002186,2]
[332379123,1721140233593,-214.830504,0.0002186,2]
[332379124,1721140233602,-214.830504,0.0002186,2]
[332379125,1721140233612,-214.830504,0.0002186,2]
[332379126,1721140233622,-214.830504,0.0002186,2]
[332379127,1721140233632,-151.0,0.0002186,2]
[332379128,1721140233642,-151.0,0.0002186,2]
[332379129,1721140233652,-280.12328685,0.0002186,2]
[332379130,1721140233661,-151.0,0.0002186,2]
[332379131,1721140233671,-151.0,0.0002186,2]
[332379132,1721140233680,-151.0,0.0002186,2]
[332379133,1721140233690,-151.0,0.0002186,2]
[332379134,1721140233700,-146.5996928,0.0002186,2]
[332379676,1721140243872,-210.8774612,0.0002186,2]
[332379679,1721140243882,-357.477154,0.0002186,2]
[332379683,1721140243892,-151.0,0.0002186,2]